[Event "Tournoi de MI Clichy 92 2022"]
[Site "Clichy, France"]
[Date "2022.02.23"]
[Round "5.4"]
[White "Petrov, Martin"]
[Black "Decuigniere, Tom"]
[Result "1/2-1/2"]
[TimeControl "1H40 40 moves plus 30 minutes + 30 seconds from move one"]
[WhiteElo "2547"]
[BlackElo "2292"]

1. c4 {[%clk 01:30:53]} {[%emt 00:00:06]} c5 {[%clk 01:30:14]} {[%emt
00:00:47]} 2. Nf3 {[%clk 01:31:11]} {[%emt 00:00:11]} g6 {[%clk 01:30:31]}
{[%emt 00:00:14]} 3. e4 {[%clk 01:31:14]} {[%emt 00:00:26]} Bg7 {[%clk
01:29:54]} {[%emt 00:01:07]} 4. d4 {[%clk 01:31:39]} {[%emt 00:00:05]} cxd4
{[%clk 01:30:20]} {[%emt 00:00:04]} 5. Nxd4 {[%clk 01:32:05]} {[%emt 00:00:04]}
Nc6 {[%clk 01:30:45]} {[%emt 00:00:06]} 6. Nc2 {[%clk 01:29:59]} {[%emt
00:02:35]} d6 {[%clk 01:30:55]} {[%emt 00:00:19]} 7. Be2 {[%clk 01:30:22]}
{[%emt 00:00:07]} Be6 {[%clk 01:28:53]} {[%emt 00:02:32]} 8. O-O {[%clk
01:29:54]} {[%emt 00:00:57]} Rc8 {[%clk 01:27:32]} {[%emt 00:01:51]} 9. Ne3
{[%clk 01:14:11]} {[%emt 00:16:13]} Qd7 {[%clk 01:15:18]} {[%emt 00:12:45]} 10.
f4 {[%clk 01:10:21]} {[%emt 00:04:20]} Nd4 {[%clk 01:13:04]} {[%emt 00:02:44]}
11. Bd3 {[%clk 01:05:18]} {[%emt 00:05:32]} f5 {[%clk 01:10:52]} {[%emt
00:02:42]} 12. Nc3 {[%clk 01:05:25]} {[%emt 00:00:23]} Nf6 {[%clk 01:06:20]}
{[%emt 00:05:02]} 13. exf5 {[%clk 00:51:20]} {[%emt 00:14:35]} Nxf5 {[%clk
01:04:21]} {[%emt 00:02:29]} 14. Nxf5 {[%clk 00:51:45]} {[%emt 00:00:05]} Bxf5
{[%clk 01:00:45]} {[%emt 00:04:06]} 15. Be3 {[%clk 00:51:29]} {[%emt 00:00:46]}
Qe6 {[%clk 00:45:22]} {[%emt 00:15:54]} 16. Bxa7 {[%clk 00:51:11]} {[%emt
00:00:48]} Bxd3 {[%clk 00:45:42]} {[%emt 00:00:09]} 17. Qxd3 {[%clk 00:51:35]}
{[%emt 00:00:06]} Qxc4 {[%clk 00:46:04]} {[%emt 00:00:08]} 18. Qf3 {[%clk
00:40:02]} {[%emt 00:12:02]} O-O {[%clk 00:30:03]} {[%emt 00:16:31]} 19. Qxb7
{[%clk 00:32:53]} {[%emt 00:07:40]} Rc7 {[%clk 00:27:52]} {[%emt 00:02:40]} 20.
Qb3 {[%clk 00:24:41]} {[%emt 00:08:42]} Qxb3 {[%clk 00:26:50]} {[%emt
00:01:32]} 21. axb3 {[%clk 00:25:10]} {[%emt 00:00:01]} Ng4 {[%clk 00:23:20]}
{[%emt 00:04:00]} 22. h3 {[%clk 00:23:10]} {[%emt 00:02:30]} Rxa7 {[%clk
00:22:24]} {[%emt 00:01:26]} 23. Rxa7 {[%clk 00:23:36]} {[%emt 00:00:04]} Bd4+
{[%clk 00:22:50]} {[%emt 00:00:04]} 24. Kh1 {[%clk 00:24:02]} {[%emt 00:00:03]}
Bxa7 {[%clk 00:20:57]} {[%emt 00:02:24]} 25. hxg4 {[%clk 00:24:28]} {[%emt
00:00:04]} Rb8 {[%clk 00:21:08]} {[%emt 00:00:19]} 26. Re1 {[%clk 00:21:17]}
{[%emt 00:03:41]} Kf7 {[%clk 00:19:19]} {[%emt 00:02:19]} 27. Nd5 {[%clk
00:17:47]} {[%emt 00:04:01]} Rb7 {[%clk 00:17:00]} {[%emt 00:02:49]} 28. f5
{[%clk 00:05:19]} {[%emt 00:12:58]} Bd4 {[%clk 00:16:20]} {[%emt 00:01:09]} 29.
Re2 {[%clk 00:05:10]} {[%emt 00:00:39]} Be5 {[%clk 00:14:45]} {[%emt 00:02:05]}
30. b4 {[%clk 00:05:36]} {[%emt 00:00:04]} h5 {[%clk 00:12:07]} {[%emt
00:03:08]} 31. fxg6+ {[%clk 00:04:51]} {[%emt 00:01:15]} Kxg6 {[%clk 00:12:33]}
{[%emt 00:00:04]} 32. gxh5+ {[%clk 00:05:09]} {[%emt 00:00:12]} Kxh5 {[%clk
00:12:58]} {[%emt 00:00:05]} 33. Re4 {[%clk 00:05:35]} {[%emt 00:00:03]} Kg5
{[%clk 00:10:21]} {[%emt 00:03:07]} 34. g4 {[%clk 00:04:01]} {[%emt 00:02:04]}
e6 {[%clk 00:10:28]} {[%emt 00:00:23]} 35. Ne3 {[%clk 00:03:03]} {[%emt
00:01:28]} Bf4 {[%clk 00:10:30]} {[%emt 00:00:28]} 36. Rxe6 {[%clk 00:01:27]}
{[%emt 00:02:06]} Bxe3 {[%clk 00:10:54]} {[%emt 00:00:06]} 37. Rxe3 {[%clk
00:01:54]} {[%emt 00:00:03]} Rxb4 {[%clk 00:11:18]} {[%emt 00:00:07]} 38. Rd3
{[%clk 00:02:02]} {[%emt 00:00:21]} Rxb2 {[%clk 00:11:43]} {[%emt 00:00:06]} 39.
Rxd6 {[%clk 00:02:26]} {[%emt 00:00:05]} Kxg4 {[%clk 00:12:08]} {[%emt
00:00:05]} 1/2-1/2

[ePGN "0.1;DGT LiveChess/2.2.5"]

[Event "Tournoi de MI Clichy 92 2022"]
[Site "Clichy, France"]
[Date "2022.02.24"]
[Round "6.4"]
[White "Degardin, Sylvain"]
[Black "Petrov, Martin"]
[Result "0-1"]
[TimeControl "1H40 40 moves plus 30 minutes + 30 seconds from move one"]
[WhiteElo "2288"]
[BlackElo "2547"]

1. e4 {[%clk 01:25:04]} {[%emt 00:05:54]} c5 {[%clk 01:30:55]} {[%emt
00:00:06]} 2. Nf3 {[%clk 01:25:12]} {[%emt 00:00:21]} Nc6 {[%clk 01:31:22]}
{[%emt 00:00:04]} 3. Bb5 {[%clk 01:25:10]} {[%emt 00:00:31]} g6 {[%clk
01:31:46]} {[%emt 00:00:07]} 4. O-O {[%clk 01:25:03]} {[%emt 00:00:36]} Bg7
{[%clk 01:32:13]} {[%emt 00:00:03]} 5. Re1 {[%clk 01:25:05]} {[%emt 00:00:28]}
e5 {[%clk 01:32:34]} {[%emt 00:00:10]} 6. Bxc6 {[%clk 01:25:05]} {[%emt
00:00:30]} dxc6 {[%clk 01:33:01]} {[%emt 00:00:04]} 7. d3 {[%clk 01:25:10]}
{[%emt 00:00:23]} Qe7 {[%clk 01:33:28]} {[%emt 00:00:04]} 8. Nbd2 {[%clk
01:24:44]} {[%emt 00:00:55]} Nh6 {[%clk 01:30:13]} {[%emt 00:03:46]} 9. Nc4
{[%clk 01:19:28]} {[%emt 00:05:46]} f6 {[%clk 01:30:38]} {[%emt 00:00:05]} 10.
a4 {[%clk 01:14:56]} {[%emt 00:05:01]} b6 {[%clk 01:23:24]} {[%emt 00:07:45]}
11. Bd2 {[%clk 01:11:16]} {[%emt 00:04:08]} O-O {[%clk 01:16:06]} {[%emt
00:07:49]} 12. Rb1 {[%clk 01:06:06]} {[%emt 00:05:40]} Be6 {[%clk 01:11:46]}
{[%emt 00:04:51]} 13. Qe2 {[%clk 01:03:01]} {[%emt 00:03:34]} Nf7 {[%clk
01:05:48]} {[%emt 00:06:29]} 14. b3 {[%clk 00:58:12]} {[%emt 00:05:18]} Nd8
{[%clk 00:58:49]} {[%emt 00:07:30]} 15. Bc3 {[%clk 00:55:20]} {[%emt 00:03:21]}
Bf7 {[%clk 00:56:22]} {[%emt 00:02:58]} 16. g3 {[%clk 00:53:25]} {[%emt
00:02:24]} Ne6 {[%clk 00:56:36]} {[%emt 00:00:16]} 17. b4 {[%clk 00:48:57]}
{[%emt 00:04:59]} cxb4 {[%clk 00:55:34]} {[%emt 00:01:33]} 18. Bxb4 {[%clk
00:45:54]} {[%emt 00:03:32]} c5 {[%clk 00:56:02]} {[%emt 00:00:03]} 19. Ba3
{[%clk 00:41:15]} {[%emt 00:05:08]} Qd7 {[%clk 00:52:38]} {[%emt 00:03:54]} 20.
a5 {[%clk 00:28:05]} {[%emt 00:13:40]} b5 {[%clk 00:52:46]} {[%emt 00:00:23]}
21. Ne3 {[%clk 00:28:03]} {[%emt 00:00:31]} Rfd8 {[%clk 00:52:46]} {[%emt
00:00:30]} 22. Nd5 {[%clk 00:16:47]} {[%emt 00:11:45]} Nd4 {[%clk 00:52:51]}
{[%emt 00:00:27]} 23. Nxd4 {[%clk 00:17:04]} {[%emt 00:00:13]} cxd4 {[%clk
00:53:18]} {[%emt 00:00:03]} 24. Nb4 {[%clk 00:09:07]} {[%emt 00:08:26]} Rac8
{[%clk 00:51:43]} {[%emt 00:02:05]} 25. Bc1 {[%clk 00:08:48]} {[%emt 00:00:49]}
Bf8 {[%clk 00:43:33]} {[%emt 00:08:40]} 26. Bd2 {[%clk 00:08:20]} {[%emt
00:00:57]} Rc7 {[%clk 00:42:50]} {[%emt 00:01:14]} 27. Rb2 {[%clk 00:07:41]}
{[%emt 00:01:09]} Rdc8 {[%clk 00:43:14]} {[%emt 00:00:06]} 28. Rc1 {[%clk
00:05:27]} {[%emt 00:02:45]} Bd6 {[%clk 00:35:19]} {[%emt 00:08:25]} 29. f3
{[%clk 00:03:47]} {[%emt 00:02:10]} Qe7 {[%clk 00:32:36]} {[%emt 00:03:14]} 30.
Qd1 {[%clk 00:03:24]} {[%emt 00:00:53]} Rc3 {[%clk 00:31:21]} {[%emt 00:01:45]}
31. Rcb1 {[%clk 00:01:20]} {[%emt 00:02:33]} Bxb4 {[%clk 00:22:10]} {[%emt
00:09:42]} 32. Rxb4 {[%clk 00:01:29]} {[%emt 00:00:21]} Rxc2 {[%clk 00:22:36]}
{[%emt 00:00:04]} 33. Rxb5 {[%clk 00:01:30]} {[%emt 00:00:30]} Qa3 {[%clk
00:23:02]} {[%emt 00:00:04]} 34. Bh6 {[%clk 00:00:45]} {[%emt 00:01:15]} Qa2
{[%clk 00:23:20]} {[%emt 00:00:12]} 35. Qf1 {[%clk 00:00:41]} {[%emt 00:00:33]}
Rxh2 {[%clk 00:23:14]} {[%emt 00:00:37]} 36. Rb8 {[%clk 00:00:32]} {[%emt
00:00:39]} Rxh6 {[%clk 00:22:59]} {[%emt 00:00:46]} 37. Rxc8+ {[%clk 00:00:32]}
{[%emt 00:00:31]} Kg7 {[%clk 00:23:26]} {[%emt 00:00:03]} 0-1

[Event "Tournoi de MI Clichy 92 2022"]
[Site "Clichy, France"]
[Date "2022.02.24"]
[Round "6.5"]
[White "Soham Das"]
[Black "Decuigniere, Tom"]
[Result "1-0"]
[TimeControl "1H40 40 moves plus 30 minutes + 30 seconds from move one"]
[WhiteElo "2378"]
[BlackElo "2292"]

1. e4 {[%clk 01:25:57]} {[%emt 00:05:02]} c5 {[%clk 01:30:55]} {[%emt
00:00:06]} 2. Nf3 {[%clk 01:26:22]} {[%emt 00:00:04]} g6 {[%clk 01:31:20]}
{[%emt 00:00:05]} 3. Bc4 {[%clk 01:26:50]} {[%emt 00:00:03]} Bg7 {[%clk
01:31:17]} {[%emt 00:00:32]} 4. c3 {[%clk 01:27:16]} {[%emt 00:00:05]} e6
{[%clk 01:27:43]} {[%emt 00:04:04]} 5. O-O {[%clk 01:26:14]} {[%emt 00:01:32]}
Ne7 {[%clk 01:27:12]} {[%emt 00:01:01]} 6. d4 {[%clk 01:26:38]} {[%emt
00:00:06]} cxd4 {[%clk 01:26:53]} {[%emt 00:00:49]} 7. Nxd4 {[%clk 01:27:04]}
{[%emt 00:00:03]} d5 {[%clk 01:17:01]} {[%emt 00:10:22]} 8. exd5 {[%clk
01:27:20]} {[%emt 00:00:15]} Nxd5 {[%clk 01:16:53]} {[%emt 00:00:37]} 9. Nb5
{[%clk 01:21:39]} {[%emt 00:06:11]} a6 {[%clk 01:13:32]} {[%emt 00:03:51]} 10.
Bxd5 {[%clk 01:21:02]} {[%emt 00:01:07]} axb5 {[%clk 01:12:31]} {[%emt
00:01:31]} 11. Bf3 {[%clk 01:11:46]} {[%emt 00:09:45]} O-O {[%clk 01:06:42]}
{[%emt 00:06:20]} 12. Qb3 {[%clk 01:06:10]} {[%emt 00:06:07]} Nd7 {[%clk
00:55:03]} {[%emt 00:12:09]} 13. Na3 {[%clk 00:54:34]} {[%emt 00:12:05]} Ra5
{[%clk 00:45:54]} {[%emt 00:09:40]} 14. Be3 {[%clk 00:50:41]} {[%emt 00:04:23]}
Qh4 {[%clk 00:42:31]} {[%emt 00:03:53]} 15. Nxb5 {[%clk 00:43:39]} {[%emt
00:07:32]} Ne5 {[%clk 00:40:20]} {[%emt 00:02:42]} 16. Be2 {[%clk 00:41:35]}
{[%emt 00:02:33]} Bd7 {[%clk 00:38:55]} {[%emt 00:01:56]} 17. Nd4 {[%clk
00:24:55]} {[%emt 00:17:10]} Rfa8 {[%clk 00:31:03]} {[%emt 00:08:22]} 18. Qxb7
{[%clk 00:20:16]} {[%emt 00:05:10]} Qd8 {[%clk 00:28:46]} {[%emt 00:02:47]} 19.
Qe4 {[%clk 00:10:54]} {[%emt 00:09:52]} f5 {[%clk 00:26:28]} {[%emt 00:02:47]}
20. Qc2 {[%clk 00:11:18]} {[%emt 00:00:06]} Ng4 {[%clk 00:26:14]} {[%emt
00:00:44]} 21. Bxg4 {[%clk 00:11:13]} {[%emt 00:00:35]} fxg4 {[%clk 00:26:43]}
{[%emt 00:00:01]} 22. f3 {[%clk 00:10:02]} {[%emt 00:01:40]} e5 {[%clk
00:26:06]} {[%emt 00:01:08]} 23. Nb3 {[%clk 00:07:48]} {[%emt 00:02:44]} Bf5
{[%clk 00:24:46]} {[%emt 00:01:50]} 24. Qf2 {[%clk 00:02:37]} {[%emt 00:05:41]}
Rxa2 {[%clk 00:23:56]} {[%emt 00:01:20]} 25. Rxa2 {[%clk 00:02:47]} {[%emt
00:00:20]} Rxa2 {[%clk 00:24:21]} {[%emt 00:00:04]} 26. fxg4 {[%clk 00:02:51]}
{[%emt 00:00:26]} Be6 {[%clk 00:20:02]} {[%emt 00:04:49]} 27. Nc5 {[%clk
00:02:38]} {[%emt 00:00:43]} Bc4 {[%clk 00:20:24]} {[%emt 00:00:08]} 28. Re1
{[%clk 00:02:15]} {[%emt 00:00:52]} Qb6 {[%clk 00:19:16]} {[%emt 00:01:39]} 29.
Bc1 {[%clk 00:00:37]} {[%emt 00:02:07]} Qc6 {[%clk 00:13:55]} {[%emt 00:05:51]}
30. Rd1 {[%clk 00:00:37]} {[%emt 00:00:30]} Ra8 {[%clk 00:13:25]} {[%emt
00:01:00]} 31. Be3 {[%clk 00:00:35]} {[%emt 00:00:32]} Rf8 {[%clk 00:13:25]}
{[%emt 00:00:30]} 32. Qd2 {[%clk 00:00:59]} {[%emt 00:00:05]} Bf6 {[%clk
00:08:21]} {[%emt 00:05:35]} 33. Nd7 {[%clk 00:00:36]} {[%emt 00:00:53]} Rf7
{[%clk 00:08:00]} {[%emt 00:00:50]} 34. h3 {[%clk 00:00:32]} {[%emt 00:00:34]}
Bg7 {[%clk 00:05:26]} {[%emt 00:03:05]} 35. Nc5 {[%clk 00:00:33]} {[%emt
00:00:28]} h6 {[%clk 00:04:37]} {[%emt 00:01:18]} 36. b3 {[%clk 00:00:33]}
{[%emt 00:00:30]} Bf8 {[%clk 00:04:13]} {[%emt 00:00:54]} 37. Nd7 {[%clk
00:00:33]} {[%emt 00:00:30]} Bxb3 {[%clk 00:04:00]} {[%emt 00:00:42]} 38. Nxe5
{[%clk 00:00:46]} {[%emt 00:00:17]} Qe4 {[%clk 00:04:07]} {[%emt 00:00:24]} 39.
Nxf7 {[%clk 00:00:35]} {[%emt 00:00:41]} Bxd1 {[%clk 00:04:33]} {[%emt
00:00:04]} 40. Nxh6+ {[%clk 00:00:58]} {[%emt 00:00:08]} Bxh6 {[%clk 00:04:41]}
{[%emt 00:00:22]} 41. Bxh6 {[%clk 00:01:21]} {[%emt 00:00:06]} Ba4 {[%clk
00:05:02]} {[%emt 00:00:09]} 42. Qf2 {[%clk 00:19:17]} {[%emt 00:12:33]} Qb7
{[%clk 00:34:43]} {[%emt 00:00:49]} 43. Qf8+ {[%clk 00:17:44]} {[%emt
00:02:03]} Kh7 {[%clk 00:35:08]} {[%emt 00:00:05]} 44. Be3 {[%clk 00:17:47]}
{[%emt 00:00:25]} 1-0

[Event "Tournoi de MI Clichy 92 2022"]
[Site "Clichy, France"]
[Date "2022.02.24"]
[Round "6.1"]
[White "Onkoud, Abdelaziz"]
[Black "Droin, Augustin"]
[Result "0-1"]
[TimeControl "1H40 40 moves plus 30 minutes + 30 seconds from move one"]
[WhiteElo "2317"]
[BlackElo "2365"]

1. Nf3 {[%clk 01:17:57]} {[%emt 00:13:02]} d5 {[%clk 01:30:54]} {[%emt
00:00:07]} 2. e3 {[%clk 01:15:13]} {[%emt 00:03:14]} c5 {[%clk 01:26:50]}
{[%emt 00:04:35]} 3. c4 {[%clk 01:15:04]} {[%emt 00:00:39]} e6 {[%clk
01:24:17]} {[%emt 00:03:03]} 4. d4 {[%clk 01:14:50]} {[%emt 00:00:43]} Nf6
{[%clk 01:24:26]} {[%emt 00:00:22]} 5. Nc3 {[%clk 01:15:11]} {[%emt 00:00:09]}
dxc4 {[%clk 01:21:05]} {[%emt 00:03:52]} 6. Bxc4 {[%clk 01:15:14]} {[%emt
00:00:26]} a6 {[%clk 01:21:30]} {[%emt 00:00:05]} 7. a4 {[%clk 01:13:37]}
{[%emt 00:02:06]} b6 {[%clk 01:19:21]} {[%emt 00:02:40]} 8. O-O {[%clk
01:12:57]} {[%emt 00:01:09]} Bb7 {[%clk 01:19:48]} {[%emt 00:00:04]} 9. Qe2
{[%clk 01:13:24]} {[%emt 00:00:03]} Nc6 {[%clk 01:09:47]} {[%emt 00:10:31]} 10.
Rd1 {[%clk 01:12:39]} {[%emt 00:01:14]} Qc7 {[%clk 01:08:09]} {[%emt 00:02:09]}
11. d5 {[%clk 00:52:58]} {[%emt 00:20:10]} exd5 {[%clk 01:08:35]} {[%emt
00:00:06]} 12. Nxd5 {[%clk 00:53:24]} {[%emt 00:00:03]} Nxd5 {[%clk 01:09:01]}
{[%emt 00:00:04]} 13. Bxd5 {[%clk 00:53:45]} {[%emt 00:00:09]} Be7 {[%clk
01:08:27]} {[%emt 00:01:04]} 14. Bd2 {[%clk 00:53:50]} {[%emt 00:00:25]} Bf6
{[%clk 01:01:51]} {[%emt 00:07:07]} 15. Bc3 {[%clk 00:53:14]} {[%emt 00:01:05]}
Bxc3 {[%clk 01:02:16]} {[%emt 00:00:06]} 16. bxc3 {[%clk 00:53:36]} {[%emt
00:00:08]} O-O {[%clk 01:02:32]} {[%emt 00:00:13]} 17. Rab1 {[%clk 00:49:52]}
{[%emt 00:04:15]} Nd4 {[%clk 00:51:17]} {[%emt 00:11:46]} 18. cxd4 {[%clk
00:36:37]} {[%emt 00:13:44]} Bxd5 {[%clk 00:51:42]} {[%emt 00:00:05]} 19. dxc5
{[%clk 00:35:07]} {[%emt 00:01:59]} Qxc5 {[%clk 00:51:09]} {[%emt 00:01:03]} 20.
Nd4 {[%clk 00:34:09]} {[%emt 00:01:28]} Be4 {[%clk 00:46:29]} {[%emt 00:05:09]}
21. Rb2 {[%clk 00:32:15]} {[%emt 00:02:25]} Rfd8 {[%clk 00:44:38]} {[%emt
00:02:20]} 22. f3 {[%clk 00:30:56]} {[%emt 00:01:50]} Bg6 {[%clk 00:43:56]}
{[%emt 00:01:11]} 23. Rb3 {[%clk 00:23:25]} {[%emt 00:08:00]} Rac8 {[%clk
00:40:57]} {[%emt 00:03:29]} 24. Qxa6 {[%clk 00:10:54]} {[%emt 00:13:02]} Qe5
{[%clk 00:36:12]} {[%emt 00:05:15]} 25. Re1 {[%clk 00:04:40]} {[%emt 00:06:44]}
Qe8 {[%clk 00:31:07]} {[%emt 00:05:35]} 26. Qe2 {[%clk 00:04:21]} {[%emt
00:00:48]} Rd6 {[%clk 00:24:59]} {[%emt 00:06:39]} 27. Qb2 {[%clk 00:04:15]}
{[%emt 00:00:37]} Rc4 {[%clk 00:23:06]} {[%emt 00:02:23]} 28. Re2 {[%clk
00:03:24]} {[%emt 00:01:21]} Rxa4 {[%clk 00:14:26]} {[%emt 00:09:10]} 29. Rxb6
{[%clk 00:03:50]} {[%emt 00:00:04]} Rxb6 {[%clk 00:14:50]} {[%emt 00:00:06]} 30.
Qxb6 {[%clk 00:04:15]} {[%emt 00:00:05]} Ra1+ {[%clk 00:15:17]} {[%emt
00:00:02]} 31. Kf2 {[%clk 00:01:49]} {[%emt 00:02:56]} h6 {[%clk 00:12:26]}
{[%emt 00:03:22]} 32. Rd2 {[%clk 00:01:20]} {[%emt 00:00:59]} Qe7 {[%clk
00:11:37]} {[%emt 00:01:19]} 33. Qb8+ {[%clk 00:01:13]} {[%emt 00:00:37]} Kh7
{[%clk 00:11:53]} {[%emt 00:00:15]} 34. Ne2 {[%clk 00:01:32]} {[%emt 00:00:10]}
Qh4+ {[%clk 00:11:13]} {[%emt 00:01:10]} 35. Qg3 {[%clk 00:01:53]} {[%emt
00:00:08]} Qb4 {[%clk 00:11:35]} {[%emt 00:00:08]} 36. Qd6 {[%clk 00:00:56]}
{[%emt 00:01:28]} Qb1 {[%clk 00:11:17]} {[%emt 00:00:47]} 37. e4 {[%clk
00:01:16]} {[%emt 00:00:09]} Qf1+ {[%clk 00:09:26]} {[%emt 00:02:21]} 38. Kg3
{[%clk 00:01:38]} {[%emt 00:00:08]} Ra5 {[%clk 00:06:53]} {[%emt 00:03:03]} 39.
Nf4 {[%clk 00:00:36]} {[%emt 00:01:32]} Rg5+ {[%clk 00:06:36]} {[%emt
00:00:47]} 40. Kh3 {[%clk 00:01:00]} {[%emt 00:00:05]} Bh5 {[%clk 00:01:49]}
{[%emt 00:05:18]} 41. Rd1 {[%clk 00:27:09]} {[%emt 00:04:21]} Qf2 {[%clk
00:30:43]} {[%emt 00:01:36]} 42. Qd2 {[%clk 00:26:48]} {[%emt 00:00:50]} Qb6
{[%clk 00:26:38]} {[%emt 00:04:36]} 43. g4 {[%clk 00:23:25]} {[%emt 00:03:53]}
Bg6 {[%clk 00:25:57]} {[%emt 00:01:11]} 44. Nd5 {[%clk 00:22:38]} {[%emt
00:01:17]} Qe6 {[%clk 00:21:38]} {[%emt 00:04:49]} 45. Qf4 {[%clk 00:21:34]}
{[%emt 00:01:33]} f6 {[%clk 00:20:59]} {[%emt 00:01:10]} 46. Kg3 {[%clk
00:20:36]} {[%emt 00:01:27]} Re5 {[%clk 00:14:51]} {[%emt 00:06:39]} 47. Rc1
{[%clk 00:19:06]} {[%emt 00:02:00]} h5 {[%clk 00:12:46]} {[%emt 00:02:34]} 48.
h3 {[%clk 00:16:24]} {[%emt 00:03:12]} h4+ {[%clk 00:11:29]} {[%emt 00:01:48]}
49. Kf2 {[%clk 00:15:36]} {[%emt 00:01:17]} Qd6 {[%clk 00:11:39]} {[%emt
00:00:21]} 50. Rd1 {[%clk 00:14:11]} {[%emt 00:01:54]} Bf7 {[%clk 00:10:49]}
{[%emt 00:01:20]} 51. Nc3 {[%clk 00:11:20]} {[%emt 00:03:21]} Qc7 {[%clk
00:09:01]} {[%emt 00:02:18]} 52. Ne2 {[%clk 00:10:53]} {[%emt 00:00:56]} Qb6+
{[%clk 00:08:31]} {[%emt 00:01:01]} 53. Qe3 {[%clk 00:11:06]} {[%emt 00:00:17]}
Qc7 {[%clk 00:08:45]} {[%emt 00:00:17]} 54. Rc1 {[%clk 00:09:44]} {[%emt
00:01:51]} Qb8 {[%clk 00:08:36]} {[%emt 00:00:40]} 55. Qc3 {[%clk 00:03:01]}
{[%emt 00:07:12]} Re7 {[%clk 00:08:37]} {[%emt 00:00:29]} 56. Qc5 {[%clk
00:03:26]} {[%emt 00:00:05]} Qh2+ {[%clk 00:08:10]} {[%emt 00:00:57]} 57. Ke3
{[%clk 00:03:38]} {[%emt 00:00:18]} Rb7 {[%clk 00:06:21]} {[%emt 00:02:20]} 58.
Qf5+ {[%clk 00:01:32]} {[%emt 00:02:35]} Bg6 {[%clk 00:06:47]} {[%emt
00:00:05]} 59. Qd5 {[%clk 00:02:01]} Rb2 {[%clk 00:06:55]} {[%emt 00:00:22]} 60.
Qc4 {[%clk 00:01:22]} {[%emt 00:01:09]} Be8 {[%clk 00:04:21]} {[%emt 00:03:04]}
61. Rc2 {[%clk 00:00:36]} {[%emt 00:01:16]} Bb5 {[%clk 00:04:18]} {[%emt
00:00:32]} 62. Qc8 {[%clk 00:00:43]} {[%emt 00:00:23]} Rb3+ {[%clk 00:03:14]}
{[%emt 00:01:35]} 63. Nc3 {[%clk 00:00:36]} {[%emt 00:00:36]} Qxc2 {[%clk
00:03:31]} {[%emt 00:00:12]} 64. Qf5+ {[%clk 00:01:01]} {[%emt 00:00:06]} g6
{[%clk 00:03:50]} {[%emt 00:00:12]} 65. Kd4 {[%emt 00:00:47]} 0-1